bitfinex-derivatives/quotes_BTCF0:USTF0_20250504
["timestamp","ask_amount","ask_price","bid_price","bid_amount"]
[1746326120888,0.21224229,96065.0,96064.0,0.91592164]
[1746326126683,0.00408019,96065.0,96064.0,0.91592164]
[1746326128983,0.00156226,96073.0,96068.0,0.0520381]
[1746326129186,0.00156226,96073.0,96072.0,0.5689459]
[1746326129397,0.00156226,96073.0,96072.0,0.6342659]
[1746326129699,0.20970606,96073.0,96072.0,0.7383539]
[1746326129993,0.20820966,96073.0,96072.0,0.7710539]
[1746326130298,0.21620966,96073.0,96072.0,0.8890539]
[1746326130796,0.21720966,96073.0,96072.0,0.8890539]
[1746326130998,0.21820966,96073.0,96072.0,0.7849659]
[1746326131399,0.25050966,96073.0,96072.0,0.7849659]
[1746326131696,0.25050966,96073.0,96072.0,0.7522659]
[1746326131898,0.25050966,96073.0,96072.0,0.3914659]
[1746326132401,0.25050966,96073.0,96072.0,0.118]
[1746326132694,0.25050966,96073.0,96051.0,0.3608]
[1746326132695,0.2081611,96065.0,96064.0,0.27480322]
[1746326133688,0.2704611,96065.0,96064.0,0.27480322]
[1746326133888,0.2744611,96065.0,96064.0,0.27480322]
[1746326136496,0.2724611,96065.0,96064.0,0.27480322]
[1746326136696,0.2754611,96065.0,96064.0,0.27480322]
[1746326138400,0.2081871,96053.0,96052.0,0.2746285]
[1746326138601,0.2081871,96053.0,96052.0,0.06644]
[1746326139192,0.2720871,96053.0,96052.0,0.18444]
[1746326140611,0.2730871,96053.0,96052.0,0.18444]
[1746326141099,0.2740871,96053.0,96052.0,0.18444]
[1746326144899,0.2740871,96053.0,96052.0,0.118]
[1746326147602,0.2740871,96053.0,96052.0,0.3261893]
[1746326150396,0.2740871,96053.0,96052.0,0.118]
[1746326158713,0.27415296,96053.0,96052.0,0.118]
[1746326159314,0.26025,96048.0,96047.0,0.2082001]
[1746326159502,0.26025,96048.0,96047.0,0.2390001]
[1746326159703,0.29045,96048.0,96047.0,0.2390001]
[1746326160202,0.29045,96048.0,96047.0,0.3570001]
[1746326164916,0.30087156,96048.0,96047.0,0.3570001]
[1746326165815,0.30087156,96048.0,96047.0,0.1488]
[1746326166415,0.33187156,96048.0,96047.0,0.1488]
[1746326166718,0.33187156,96048.0,96047.0,0.3570001]
[1746326167218,0.33187156,96048.0,96047.0,0.40321363]
[1746326169518,0.33187156,96048.0,96047.0,0.37241363]
[1746326169907,0.33187156,96048.0,96047.0,0.16421353]
[1746326170110,0.33187156,96048.0,96047.0,0.37241363]
[1746326172320,0.33187156,96048.0,96047.0,0.16421353]
[1746326172616,0.33187156,96048.0,96047.0,0.118]
[1746326173123,0.2082088,96043.0,96042.0,0.00156181]
[1746326173417,0.5690088,96043.0,96042.0,0.00156181]
[1746326174119,0.6314088,96043.0,96042.0,0.00156181]
[1746326174319,0.6324088,96043.0,96042.0,0.00156181]
[1746326175816,0.6334088,96043.0,96042.0,0.00156181]
[1746326178010,0.2726088,96043.0,96042.0,0.00156181]
[1746326181121,0.2726088,96043.0,96042.0,0.11956181]
[1746326182817,0.2726088,96043.0,96042.0,0.15126181]
[1746326185232,0.2726088,96043.0,96042.0,0.11956181]
[1746326187234,0.0328,96043.0,96042.0,0.32777271]
[1746326187428,0.002,96043.0,96042.0,0.47187637]
[1746326187729,0.0316,96051.0,96050.0,0.2081936]
[1746326188120,0.2397914,96051.0,96050.0,0.3261936]
[1746326188317,0.2397914,96051.0,96050.0,0.37238419]
[1746326188533,0.2397914,96051.0,96050.0,0.3917936]
[1746326189220,0.2427914,96051.0,96050.0,0.3917936]
[1746326190221,0.2457914,96051.0,96050.0,0.3917936]
[1746326192330,0.2437914,96051.0,96050.0,0.3917936]
[1746326192933,0.2427914,96051.0,96050.0,0.3917936]
[1746326193632,0.2407914,96051.0,96050.0,0.3917936]
[1746326193833,0.2427914,96051.0,96050.0,0.3917936]
[1746326196326,0.2602123,96064.0,96056.0,0.0520448]
[1746326196639,0.0520368,96076.0,96075.0,0.2081308]
[1746326196933,0.0316,96080.0,96077.0,0.0520334]
[1746326197132,0.2397286,96080.0,96079.0,0.2081308]
[1746326198230,0.2397286,96080.0,96079.0,0.3261308]
[1746326199239,0.2497286,96080.0,96079.0,0.3261308]
[1746326203038,0.2497286,96080.0,96079.0,0.118]
[1746326203935,0.2497286,96080.0,96079.0,0.3261308]
[1746326206433,0.2497286,96080.0,96079.0,0.118]
[1746326207433,0.2497286,96080.0,96079.0,0.0677413]
[1746326207742,0.2081524,96069.0,96058.0,0.2735345]
[1746326208044,0.5689524,96069.0,96059.0,0.2081725]
[1746326208342,0.5689524,96069.0,96068.0,0.39280322]
[1746326208845,0.6335524,96069.0,96068.0,0.118]
[1746326209339,0.2081784,96057.0,96056.0,0.06536]
[1746326210130,0.2081784,96057.0,96056.0,0.18336]
[1746326210328,0.2703784,96057.0,96056.0,0.18336]
[1746326210842,0.2703784,96057.0,96056.0,0.3915402]
[1746326214541,0.28089699,96057.0,96056.0,0.3915402]
[1746326221550,0.2703784,96057.0,96056.0,0.3915402]
[1746326221951,0.28077582,96057.0,96056.0,0.3915402]
[1746326233663,0.28077582,96057.0,96056.0,0.3261802]
[1746326236775,0.24927582,96057.0,96056.0,0.3261802]
[1746326236968,0.052041,96064.0,96056.0,0.3261802]
[1746326236969,0.0520396,96067.0,96061.0,0.052042]
[1746326237164,0.0331,96063.0,96062.0,0.3031676]
[1746326237364,0.2081332,96078.0,96077.0,0.2601642]
[1746326237968,0.0331,96079.0,96078.0,0.2081329]
[1746326238164,0.0331,96079.0,96078.0,0.2739329]
[1746326238362,0.20967553,96087.0,96086.0,0.2081156]
[1746326238563,0.00156213,96087.0,96086.0,0.5689156]
[1746326238766,0.00156213,96087.0,96086.0,0.6019156]
[1746326239067,0.00156213,96087.0,96086.0,0.7199156]
[1746326239667,0.20967553,96087.0,96086.0,0.7199156]
[1746326240771,0.22267553,96087.0,96086.0,0.7199156]
[1746326241575,0.22267553,96087.0,96086.0,0.3591156]
[1746326241778,0.25517553,96087.0,96086.0,0.3591156]
[1746326242773,0.25517553,96087.0,96086.0,0.118]
[1746326242973,0.2081416,96074.0,96061.0,0.06584]
[1746326243170,0.0520381,96069.0,96061.0,0.06584]
[1746326243373,0.2081676,96062.0,96061.0,0.06584]
[1746326244487,0.2081741,96059.0,96058.0,0.2081762]
[1746326245168,0.2081741,96059.0,96058.0,0.3261762]
[1746326246580,0.2091741,96059.0,96058.0,0.118]
[1746326247174,0.2101741,96059.0,96058.0,0.118]
[1746326247774,0.5709741,96059.0,96058.0,0.118]
[1746326248280,0.2081871,96054.0,96053.0,0.2081868]
[1746326248778,0.2702871,96054.0,96053.0,0.2081868]
[1746326249279,0.2081893,96052.0,96051.0,0.0321]
[1746326249484,0.2081958,96049.0,96048.0,0.06584]
[1746326250183,0.2081958,96049.0,96048.0,0.18384]
[1746326250482,0.2385958,96049.0,96048.0,0.3920379]
[1746326250981,0.2375958,96049.0,96048.0,0.3930379]
[1746326252480,0.2375958,96049.0,96048.0,0.3940379]
[1746326256082,0.2375958,96049.0,96048.0,0.2760379]
[1746326257385,0.2375958,96049.0,96048.0,0.4268379]
[1746326257573,0.2375958,96049.0,96048.0,0.3940379]
[1746326260894,0.2375958,96049.0,96048.0,0.18584]
[1746326261978,0.2375958,96049.0,96048.0,0.18484]
[1746326263087,0.2375958,96049.0,96048.0,0.18384]
[1746326277491,0.2375958,96049.0,96048.0,0.23026737]
[1746326278190,0.2375958,96049.0,96048.0,0.16442737]
[1746326278389,0.2375958,96049.0,96048.0,0.118]
[1746326279285,0.2375958,96049.0,96042.0,0.00156181]
[1746326279286,0.2082088,96043.0,96042.0,0.00156181]
[1746326279490,0.5690088,96043.0,96042.0,0.00156181]
[1746326280189,0.2734088,96043.0,96042.0,0.00156181]
[1746326280388,0.2422088,96043.0,96042.0,0.10830189]
[1746326280885,0.2422088,96043.0,96042.0,0.31651279]
[1746326281193,0.2432088,96043.0,96042.0,0.43451279]
[1746326282896,0.2432088,96043.0,96042.0,0.40441279]
[1746326283085,0.2432088,96043.0,96042.0,0.19620189]
[1746326283291,0.2432088,96043.0,96042.0,0.16600189]
[1746326286393,0.2432088,96043.0,96035.0,0.00104128]
[1746326286394,0.0520542,96040.0,96035.0,0.00104128]
[1746326286597,0.2082239,96036.0,96035.0,0.00104128]
[1746326287493,0.20832785,96036.0,96035.0,0.00204128]
[1746326288099,0.20832785,96036.0,96035.0,0.00104128]
[1746326288289,0.20832785,96036.0,96035.0,0.00204128]
[1746326289593,0.20832785,96036.0,96035.0,0.00304128]
[1746326291190,0.20832785,96036.0,96035.0,0.12104128]
[1746326291594,0.20832785,96036.0,96035.0,0.32926738]
[1746326293597,0.20832785,96036.0,96035.0,0.39236738]
[1746326294906,0.20832785,96036.0,96035.0,0.43836295]
[1746326295098,0.20832785,96036.0,96035.0,0.39236738]
[1746326299406,0.20832785,96036.0,96035.0,0.35976738]
[1746326302708,0.20832785,96036.0,96035.0,0.40570693]
[1746326308201,0.20832785,96036.0,96035.0,0.35976738]
[1746326309307,0.20832785,96036.0,96035.0,0.40572203]
[1746326311608,0.00010395,96036.0,96035.0,0.40572203]
[1746326312114,0.20832785,96036.0,96035.0,0.40572203]
[1746326317116,0.20832785,96036.0,96035.0,0.43772203]
[1746326323318,0.20832785,96036.0,96035.0,0.79852203]
[1746326328022,0.20832785,96036.0,96035.0,0.76652203]
[1746326329018,0.20832785,96036.0,96035.0,0.52779593]
[1746326329222,0.20832785,96036.0,96035.0,0.12104128]
[1746326330114,0.20832785,96036.0,96035.0,0.00304128]
[1746326332530,0.2082391,96029.0,96028.0,0.01562]
[1746326332724,0.2082391,96029.0,96028.0,0.25426989]
[1746326332929,0.2082391,96029.0,96028.0,0.04602859]
[1746326333134,0.2082413,96028.0,96027.0,0.2082435]
[1746326333432,0.2717413,96028.0,96027.0,0.25427376]
[1746326333635,0.2697413,96028.0,96027.0,0.25427376]
[1746326333831,0.2687413,96028.0,96027.0,0.25427376]
[1746326334335,0.2687413,96028.0,96027.0,0.25827376]
[1746326335838,0.27942728,96028.0,96027.0,0.25827376]
[1746326336828,0.27942728,96028.0,96027.0,0.05003026]
[1746326338124,0.2082456,96026.0,96022.0,0.2238724]
[1746326338331,0.20825,96024.0,96023.0,0.04602549]
[1746326338730,0.2082738,96013.0,96012.0,0.28261586]
[1746326338935,0.1780838,96013.0,96012.0,0.53692263]
[1746326339135,0.1780838,96013.0,96012.0,0.60107922]
[1746326339535,0.1770838,96013.0,96012.0,0.60107922]
[1746326340137,0.1760838,96013.0,96012.0,0.63197922]
[1746326340334,0.1770838,96013.0,96012.0,0.63197922]
[1746326340640,0.1770838,96013.0,96012.0,0.66397922]
[1746326341139,0.1780838,96013.0,96012.0,0.66397922]
[1746326341838,0.002,96013.0,96012.0,0.66397922]
[1746326342429,0.002,96013.0,96012.0,0.76813122]
[1746326344147,0.002,96013.0,96012.0,0.66397922]
[1746326345247,0.0520582,96032.0,96031.0,0.2082348]
[1746326345441,0.2082403,96032.0,96031.0,0.2602931]
[1746326345642,0.2395293,96034.0,96033.0,0.2082305]
[1746326346343,0.2395293,96034.0,96033.0,0.3262305]
[1746326346532,0.2728293,96034.0,96033.0,0.3262305]
[1746326346940,0.2728293,96034.0,96033.0,0.3588305]
[1746326347137,0.2788293,96034.0,96033.0,0.3598305]
[1746326347742,0.3095293,96034.0,96033.0,0.3272305]
[1746326348240,0.3145293,96034.0,96033.0,0.3272305]
[1746326350449,0.2525293,96034.0,96033.0,0.3272305]
[1746326350649,0.2525293,96034.0,96033.0,0.3605305]
[1746326350840,0.0443,96034.0,96033.0,0.3605305]
[1746326351040,0.0443,96034.0,96033.0,0.3931305]
[1746326357738,0.2525283,96034.0,96033.0,0.3605305]
[1746326358850,0.2525283,96034.0,96033.0,0.3272305]
[1746326362355,0.2525283,96034.0,96033.0,0.3578305]
[1746326362553,0.2525283,96034.0,96033.0,0.3272305]
[1746326363058,0.0443,96034.0,96033.0,0.3272305]
[1746326363354,0.0443,96034.0,96033.0,0.3923305]
[1746326364650,39.7908375,127110.0,96033.0,0.3923305]
[1746326364651,0.0015,96060.0,96033.0,0.56303522]
[1746326364849,0.0329,96053.0,96052.0,0.2081893]
[1746326365053,0.0329,96053.0,96050.0,0.052048]
[1746326365054,0.0015,96060.0,96053.0,0.2081871]
[1746326365455,0.2081745,96059.0,96058.0,0.2081719]
[1746326366155,0.2081745,96059.0,96058.0,0.3261719]
[1746326366950,0.2181745,96059.0,96058.0,0.3271719]
[1746326367452,0.2081745,96059.0,96058.0,0.3261719]
[1746326367657,0.2111745,96059.0,96058.0,0.3261719]
[1746326367859,0.2430745,96059.0,96058.0,0.3261719]
[1746326368154,0.2450745,96059.0,96058.0,0.3261719]
[1746326368359,0.2782745,96059.0,96058.0,0.3261719]
[1746326368758,0.0701,96059.0,96058.0,0.3261719]
[1746326369657,0.2782741,96059.0,96058.0,0.3261719]
[1746326370751,0.2772741,96059.0,96058.0,0.3261719]
[1746326370953,0.0691,96059.0,96058.0,0.3261719]
[1746326371151,0.2772741,96059.0,96058.0,0.118]
[1746326371555,0.2752741,96059.0,96058.0,0.118]
[1746326372358,0.2752741,96059.0,96047.0,0.06672]
[1746326372359,0.2081893,96052.0,96051.0,0.2081905]
[1746326373249,0.2700893,96052.0,96051.0,0.2081905]
[1746326373450,0.2710893,96052.0,96051.0,0.2081905]
[1746326373755,0.2082066,96044.0,96042.0,0.11956181]
[1746326374249,0.2082066,96044.0,96042.0,0.20977181]
[1746326374449,0.2082066,96044.0,96042.0,0.00156181]
[1746326374649,0.2712066,96044.0,96042.0,0.00156181]
[1746326374853,0.2712066,96044.0,96043.0,0.27580322]
[1746326375255,0.6320066,96044.0,96043.0,0.27580322]
[1746326375851,0.6320066,96044.0,96043.0,0.001]
[1746326376050,0.7361266,96044.0,96043.0,0.001]
[1746326376255,0.7371266,96044.0,96043.0,0.001]
[1746326376854,0.7391266,96044.0,96043.0,0.001]
[1746326377049,0.2082088,96043.0,96042.0,0.00156181]
[1746326377455,0.2711088,96043.0,96042.0,0.00156181]
[1746326378761,0.2751088,96043.0,96042.0,0.00156181]
[1746326392564,0.2751088,96043.0,96038.0,0.01561]
[1746326392565,0.2082174,96039.0,96038.0,0.01561]
[1746326392763,0.2082348,96031.0,96030.0,0.09802]
[1746326392963,0.2082348,96031.0,96030.0,0.306257]
[1746326393270,0.2082348,96031.0,96030.0,0.424257]
[1746326394068,0.2705348,96031.0,96030.0,0.424257]
[1746326395157,0.28084432,96031.0,96030.0,0.424257]
[1746326395963,0.07260952,96031.0,96013.0,0.06712]
[1746326396167,0.2082695,96015.0,96014.0,0.2411717]
[1746326396363,0.2082695,96015.0,96014.0,0.2740717]
[1746326396663,0.208262,96019.0,96014.0,0.1178674]
[1746326396869,0.0520621,96025.0,96024.0,0.2603077]
[1746326397668,0.2603099,96025.0,96024.0,0.2603077]
[1746326400471,0.2603099,96025.0,96020.0,0.3054576]
[1746326400472,0.2082565,96021.0,96020.0,0.3054576]
[1746326401265,0.2082565,96021.0,96020.0,0.4234576]
[1746326401471,0.2082565,96021.0,96020.0,0.2152]
[1746326401774,0.2393565,96021.0,96020.0,0.1833]
[1746326402165,0.2393565,96021.0,96020.0,0.0653]
[1746326403066,0.2393565,96021.0,96020.0,0.0324]
[1746326403262,0.2393565,96021.0,96020.0,0.0314]
[1746326403467,0.2393565,96021.0,96020.0,0.2396586]
[1746326404471,0.2393565,96021.0,96020.0,0.0314]
[1746326405382,0.2403565,96021.0,96020.0,0.2396586]
[1746326405567,0.2403565,96021.0,96020.0,0.0314]
[1746326406268,0.2403565,96021.0,96020.0,0.2727586]
[1746326408673,0.2092565,96021.0,96020.0,0.2727586]
[1746326411093,0.001,96021.0,96020.0,0.2727586]
[1746326411284,0.2092565,96021.0,96020.0,0.2727586]
[1746326412086,0.2092565,96021.0,96020.0,0.3907586]
[1746326418388,0.001,96021.0,96020.0,0.3907586]
[1746326419992,0.2092565,96021.0,96020.0,0.3907586]
[1746326420982,0.001,96021.0,96020.0,0.3907586]
[1746326421187,0.2092565,96021.0,96020.0,0.3907586]
[1746326423187,0.001,96021.0,96020.0,0.3907586]
[1746326423587,0.2092565,96021.0,96020.0,0.3907586]
[1746326423990,0.001,96021.0,96020.0,0.3907586]
[1746326424690,0.001,96021.0,96020.0,0.49490259]
[1746326424998,0.2388348,96031.0,96030.0,0.208237]
[1746326425295,0.2388348,96031.0,96030.0,0.326237]
[1746326425682,0.2388348,96031.0,96030.0,0.390637]
[1746326426386,0.2408348,96031.0,96030.0,0.390637]
[1746326427293,0.2428348,96031.0,96030.0,0.390637]
[1746326430196,0.2418348,96031.0,96030.0,0.390637]
[1746326430895,0.2428348,96031.0,96030.0,0.390637]
[1746326432301,0.002,96031.0,96030.0,0.390637]
[1746326432698,0.2102348,96031.0,96030.0,0.390637]
[1746326435791,0.2412348,96031.0,96030.0,0.390637]
[1746326448011,0.2412348,96031.0,96030.0,0.326237]
[1746326453206,0.2412348,96031.0,96030.0,0.118]
[1746326453414,0.2082652,96017.0,96007.0,0.05363398]
[1746326453618,0.5690652,96017.0,96007.0,0.05363388]
[1746326453820,0.2082673,96016.0,96011.0,0.2082779]
[1746326454009,0.2712673,96016.0,96009.0,0.2082813]
[1746326454526,0.2712673,96016.0,96010.0,0.2082795]
[1746326454820,0.2702673,96016.0,96010.0,0.2082795]
[1746326455515,0.2702673,96016.0,96015.0,0.00116618]
[1746326455922,0.2682673,96016.0,96015.0,0.00116618]
[1746326456616,0.6290673,96016.0,96015.0,0.00316618]
[1746326457018,0.6290673,96016.0,96015.0,0.00116618]
[1746326457720,0.6290673,96016.0,96015.0,0.00016618]
[1746326457910,0.6300673,96016.0,96015.0,0.00016618]
[1746326458111,0.2692673,96016.0,96015.0,0.00016618]
[1746326458311,0.6300673,96016.0,96015.0,0.00016618]
[1746326462025,0.6300673,96016.0,96009.0,0.2387805]
[1746326462026,0.208289,96006.0,96005.0,0.00104161]
[1746326462222,0.569089,96006.0,96005.0,0.00104161]
[1746326462822,0.631389,96006.0,96005.0,0.00104161]
[1746326463324,0.631389,96006.0,96005.0,0.00204161]
[1746326463821,0.2083433,95981.0,95980.0,0.06650943]
[1746326464018,0.2083433,95981.0,95980.0,0.28271481]
[1746326464221,0.2073433,95981.0,95980.0,0.40071481]
[1746326465127,0.2395433,95981.0,95980.0,0.93751481]
[1746326465332,0.2395433,95981.0,95980.0,0.94351481]
[1746326465830,0.2395433,95981.0,95980.0,0.72730943]
[1746326466032,0.2395433,95981.0,95980.0,0.66090943]
[1746326466224,0.2395433,95981.0,95980.0,0.54290943]
[1746326466424,0.2395433,95981.0,95980.0,0.53690943]
[1746326466631,0.2395433,95981.0,95980.0,0.04190943]
[1746326467437,0.2395433,95981.0,95980.0,0.03590943]
[1746326467639,0.2395433,95981.0,95980.0,0.04090943]
[1746326468729,0.2395433,95981.0,95980.0,0.00910943]
[1746326471339,0.2395433,95981.0,95980.0,0.00710943]
[1746326471534,0.6003433,95981.0,95980.0,0.00610943]
[1746326473839,0.7045313,95981.0,95980.0,0.00610943]
[1746326474045,0.6003433,95981.0,95980.0,0.00610943]
[1746326474446,0.7045313,95981.0,95980.0,0.00610943]
[1746326474644,0.7045313,95981.0,95975.0,0.00104193]
[1746326474948,0.3608,95970.0,95928.0,0.0521144]
[1746326475147,0.3608,95970.0,95914.0,0.43641214]
[1746326475148,0.9300366,95938.0,95931.0,0.00772806]
[1746326475342,0.9300366,95938.0,95937.0,0.06744352]
[1746326475848,0.93016571,95938.0,95937.0,0.27588232]
[1746326476045,0.99416571,95938.0,95937.0,0.28088232]
[1746326476349,1.00480874,95938.0,95937.0,0.07244352]
[1746326476547,1.00080874,95938.0,95937.0,0.07244352]
[1746326476742,1.00080874,95938.0,95937.0,0.28088232]
[1746326477346,0.72172911,95938.0,95937.0,0.28088232]
[1746326477652,0.93016571,95938.0,95937.0,0.27588232]
[1746326478241,0.93016571,95938.0,95937.0,0.39388232]
[1746326480052,0.72172911,95938.0,95937.0,0.39388232]
[1746326480242,0.72172911,95938.0,95937.0,0.45918232]
[1746326481546,0.72172911,95938.0,95937.0,0.35527685]
[1746326482749,1.07596511,95938.0,95900.0,0.1]
[1746326482940,1.07596511,95938.0,95900.0,0.1521293]
[1746326482941,0.3608,95916.0,95900.0,0.1521293]
[1746326483140,0.2085105,95904.0,95903.0,0.12982]
[1746326483348,0.2085127,95903.0,95900.0,0.1]
[1746326483550,0.2727127,95903.0,95902.0,0.06748409]
[1746326483742,0.2727127,95903.0,95882.0,0.26404078]
[1746326483743,0.0521361,95889.0,95882.0,0.26404078]
[1746326483938,0.9301497,95886.0,95882.0,0.26404078]
[1746326484144,0.93022398,95886.0,95885.0,0.11904291]
[1746326484338,0.92522398,95886.0,95885.0,0.11904291]
[1746326484643,0.92522398,95886.0,95885.0,0.18496291]
[1746326484847,0.92522398,95886.0,95885.0,0.12504291]
[1746326485042,0.92622398,95886.0,95885.0,0.13004291]
[1746326485243,0.92622398,95886.0,95885.0,0.01204291]
[1746326485449,0.92622398,95886.0,95885.0,0.07796291]
[1746326486159,0.2085867,95869.0,95868.0,0.0636]
[1746326486347,0.9301867,95869.0,95868.0,0.12952]
[1746326486543,0.7216,95869.0,95868.0,0.3381088]
[1746326486753,0.7186,95869.0,95868.0,0.6924168]
[1746326486950,0.7176,95869.0,95868.0,0.6924168]
[1746326487148,0.7176,95869.0,95868.0,0.7444968]
[1746326487350,0.7176,95869.0,95868.0,0.5604168]
[1746326487549,0.7186,95869.0,95868.0,0.5724168]
[1746326487947,0.9271867,95869.0,95868.0,0.4021888]
[1746326488258,0.9271867,95869.0,95868.0,0.25952]
[1746326488458,0.9271867,95869.0,95868.0,0.1936]
[1746326488653,0.9271867,95869.0,95868.0,0.13]
[1746326488958,0.98947363,95869.0,95868.0,0.19592]
[1746326489148,0.98947363,95869.0,95868.0,0.012]
[1746326489350,0.98947363,95869.0,95868.0,0.07792]
[1746326490061,0.98847363,95869.0,95868.0,0.07192]
[1746326490259,0.98847363,95869.0,95868.0,0.003]
[1746326490554,0.0521526,95859.0,95830.0,0.0521678]
[1746326490746,0.9302492,95843.0,95842.0,0.2607996]
[1746326490949,0.7216,95843.0,95842.0,0.3267196]
[1746326491147,0.7216,95843.0,95842.0,0.4447196]
[1746326491353,0.2085981,95867.0,95866.0,0.2085888]
[1746326491554,0.0636,95868.0,95867.0,0.208591]
[1746326491747,0.0636,95868.0,95867.0,0.239391]
[1746326491953,0.0316,95868.0,95867.0,0.272091]
[1746326492152,8.693e-05,95869.0,95868.0,0.2085888]
[1746326492347,0.20867363,95869.0,95868.0,0.2720888]
[1746326493052,8.693e-05,95869.0,95868.0,0.4560488]
[1746326493951,0.06298693,95869.0,95868.0,0.3910888]
[1746326494161,0.06298693,95869.0,95868.0,0.4570488]
[1746326494655,0.27157363,95869.0,95868.0,0.4570488]
[1746326495057,0.27357363,95869.0,95868.0,0.4570488]
[1746326495862,0.27357363,95869.0,95868.0,0.3910888]
[1746326496660,0.27357363,95869.0,95868.0,0.4616888]
[1746326499263,0.27357363,95869.0,95868.0,0.1825]
[1746326499565,0.27357363,95869.0,95868.0,0.4289888]
[1746326499952,0.00408693,95869.0,95868.0,0.7191888]
[1746326500155,0.2709578,95883.0,95882.0,0.2085584]
[1746326500761,0.2709578,95883.0,95882.0,0.2722584]
[1746326501149,0.27105708,95883.0,95882.0,0.3902584]
[1746326501354,0.27605708,95883.0,95882.0,0.3912584]
[1746326501555,0.24965708,95883.0,95882.0,0.3922584]
[1746326501961,0.01009928,95883.0,95882.0,0.3922584]
[1746326502162,0.0015,95885.0,95884.0,0.208554]
[1746326502354,0.0015,95885.0,95884.0,0.279154]
[1746326502755,0.2100519,95885.0,95884.0,0.279154]
[1746326503156,0.2100519,95885.0,95884.0,0.397154]
[1746326503364,0.0075,95885.0,95884.0,0.398154]
[1746326503558,0.2085323,95894.0,95893.0,0.2085323]
[1746326503756,0.2085323,95894.0,95893.0,0.2685323]
[1746326503958,0.2917656,95894.0,95893.0,0.2685323]
[1746326504153,0.2917656,95894.0,95893.0,0.3865323]
[1746326504861,0.2997656,95894.0,95893.0,0.3875323]
[1746326505166,0.3037656,95894.0,95893.0,0.3875323]
[1746326505760,0.3037656,95894.0,95893.0,0.3575323]
[1746326506761,0.2957656,95894.0,95893.0,0.3565323]
[1746326506959,0.2947656,95894.0,95893.0,0.3565323]
[1746326507165,0.2977656,95894.0,95893.0,0.3565323]
[1746326509665,0.2977656,95894.0,95893.0,0.148]
[1746326509858,0.2977656,95894.0,95893.0,0.4271345]
[1746326510264,0.2977656,95894.0,95893.0,0.3971345]
[1746326512664,0.2977656,95894.0,95893.0,0.33451423]
[1746326512870,0.2977656,95894.0,95893.0,0.40511423]
[1746326513574,0.2977656,95894.0,95893.0,0.43621423]
[1746326513872,0.2456323,95894.0,95893.0,0.43621423]
[1746326514259,0.006,95894.0,95893.0,0.43621423]
[1746326514476,0.0785658,95897.0,95896.0,0.2085279]
[1746326514772,0.0785658,95897.0,95896.0,0.5693279]
[1746326515168,0.0785658,95897.0,95896.0,0.6873279]
[1746326515568,0.2870916,95897.0,95896.0,0.6873279]
[1746326516378,0.2890916,95897.0,95896.0,0.6873279]
[1746326517477,0.2890916,95897.0,95896.0,0.6883279]
[1746326518077,0.2890916,95897.0,95896.0,0.7344579]
[1746326518577,0.2105258,95897.0,95896.0,0.7344579]
[1746326518878,0.002,95897.0,95896.0,0.7344579]
[1746326519877,0.0349,95897.0,95896.0,0.7344579]
[1746326520573,0.3608,95913.0,95905.0,0.2085084]
[1746326520770,0.0521245,95910.0,95905.0,0.5693084]
[1746326520973,0.0639,95911.0,95905.0,0.5693084]
[1746326521165,0.2084982,95910.0,95905.0,0.6873084]
[1746326521369,0.0639,95911.0,95905.0,0.7502084]
[1746326521568,0.1160239,95911.0,95908.0,0.2606226]
[1746326521768,0.3245214,95911.0,95910.0,0.2084975]
[1746326521976,0.3245214,95911.0,95910.0,0.2790975]
[1746326522176,0.3245214,95911.0,95910.0,0.3970975]
[1746326523075,0.3265214,95911.0,95910.0,0.3970975]
[1746326523678,0.3295214,95911.0,95910.0,0.3970975]
[1746326524885,0.0015,95920.0,95911.0,0.0521234]
[1746326525075,0.0317,95919.0,95915.0,0.2084866]
[1746326525277,0.2094845,95916.0,95915.0,0.2402866]
[1746326525582,0.2094845,95916.0,95915.0,0.2392866]
[1746326526174,0.2124845,95916.0,95915.0,0.3572866]
[1746326526679,0.2094845,95916.0,95915.0,0.3572866]
[1746326526980,0.2164845,95916.0,95915.0,0.3572866]
[1746326528482,0.2479845,95916.0,95915.0,0.3572866]
[1746326528984,0.2479845,95916.0,95915.0,0.18992]
[1746326530077,0.2479845,95916.0,95915.0,0.118]
[1746326530280,0.2479845,95916.0,95915.0,0.0681]
[1746326530474,0.2479845,95916.0,95915.0,0.14002]
[1746326530678,0.2798845,95916.0,95915.0,0.14002]
[1746326531179,0.2085214,95899.0,95898.0,0.2606461]
[1746326531379,0.2085214,95899.0,95898.0,0.3325661]
[1746326531984,0.2706214,95899.0,95898.0,0.3325661]
[1746326532186,0.2706214,95899.0,95898.0,0.4505661]
[1746326532380,0.2706214,95899.0,95898.0,0.4515661]
[1746326532781,0.2706214,95899.0,95898.0,0.4525661]
[1746326535278,0.2706214,95899.0,95898.0,0.3806461]
[1746326535480,0.2706214,95899.0,95898.0,0.4525661]
[1746326535887,0.2706214,95899.0,95898.0,0.3806461]
[1746326536284,0.2706214,95899.0,95898.0,0.4525661]
[1746326540793,0.2706214,95899.0,95898.0,0.3806461]
[1746326540985,0.2706214,95899.0,95898.0,0.4525661]
[1746326541390,0.2706214,95899.0,95898.0,0.3806461]
[1746326541588,0.2706214,95899.0,95898.0,0.4525661]
[1746326544192,0.2706214,95899.0,95898.0,0.12]
[1746326544386,0.6314214,95899.0,95898.0,0.19192]
[1746326544692,0.6314214,95899.0,95898.0,0.4004436]
[1746326544894,0.6314214,95899.0,95898.0,0.3285236]
[1746326545483,0.6314214,95899.0,95898.0,0.12]
[1746326545688,0.99621635,95899.0,95898.0,0.19092]
[1746326545886,0.74621635,95899.0,95898.0,0.19092]
[1746326546093,0.86421635,95899.0,95898.0,0.001]
[1746326546296,0.86421635,95899.0,95898.0,0.07292]
[1746326546992,0.2085519,95885.0,95884.0,0.26475465]
[1746326547188,0.6873519,95885.0,95884.0,0.21567454]
[1746326547386,0.79164391,95885.0,95884.0,0.21567454]
[1746326547785,0.82174391,95885.0,95884.0,0.21567454]
[1746326547991,0.83174391,95885.0,95884.0,0.21567454]
[1746326548190,0.83174391,95885.0,95884.0,0.28759454]
[1746326548400,0.83174391,95885.0,95884.0,0.28959454]
[1746326548694,0.83174391,95885.0,95884.0,0.30497312]
[1746326548892,0.83174391,95885.0,95884.0,0.23305312]
[1746326549084,0.83174391,95885.0,95864.0,0.2547268]
[1746326549085,0.2085954,95865.0,95864.0,0.04613]
[1746326549286,0.5693954,95865.0,95864.0,0.06150839]
[1746326549688,0.6727074,95865.0,95864.0,0.04613]
[1746326550088,0.7907074,95865.0,95864.0,0.05213]
[1746326550289,0.2086062,95860.0,95844.0,0.37053214]
[1746326550488,0.569415,95856.0,95855.0,4e-08]
[1746326550797,0.560415,95856.0,95855.0,4e-08]
[1746326550996,0.664739,95856.0,95855.0,4e-08]
[1746326551298,0.812739,95856.0,95855.0,4e-08]